bitfinex-derivatives/quotes_SOLF0:USTF0_20251006
["timestamp","ask_amount","ask_price","bid_price","bid_amount"]
[1759749409683,1.56540156,232.16,232.1,7.45]
[1759749410074,1.56540156,232.17,232.08,7.45]
[1759749410884,1.56540156,232.21,232.1,9.01540156]
[1759749412681,4.61,232.2,232.15,7.45]
[1759749412881,1.56540156,232.18,232.09,7.45]
[1759749413586,1.56540156,232.18,232.13,7.45]
[1759749413775,1.56540156,232.18,232.12,3.8757]
[1759749413977,1.56540156,232.18,232.13,7.45]
[1759749414588,1.56540156,232.18,232.12,3.8757]
[1759749414787,1.56540156,232.18,232.13,7.45]
[1759749415184,4.61,232.19,232.13,7.45]
[1759749415789,4.61,232.19,232.13,11.3254]
[1759749418994,1.07650915,232.2,232.15,7.45]
[1759749419194,8.13529244,232.22,232.15,7.45]
[1759749419588,12.00939244,232.22,232.15,7.45]
[1759749419890,1.07650915,232.21,232.15,7.45]
[1759749420096,4.61,232.2,232.12,3.8757]
[1759749420293,5.68650915,232.2,232.12,3.8757]
[1759749420493,4.61,232.2,232.12,3.8757]
[1759749420787,4.61,232.2,232.09,7.45]
[1759749421094,4.61,232.24,232.13,7.45]
[1759749421291,5.68628037,232.24,232.13,7.45]
[1759749421594,4.61,232.24,232.13,7.45]
[1759749423204,4.61,232.24,232.14,60.2838]
[1759749423397,4.61,232.24,232.2,7.45]
[1759749423704,1.07629063,232.25,232.11,7.45]
[1759749424098,4.61,232.24,232.11,7.45]
[1759749424499,8.4838,232.24,232.16,3.875]
[1759749426109,4.61,232.24,232.17,11.3248]
[1759749426607,4.61,232.24,232.18,3.8746]
[1759749430210,4.61,232.24,232.19,3.8744]
[1759749430405,107.90878329,232.26,232.17,7.45]
[1759749431013,2.44878329,232.26,232.17,7.45]
[1759749431311,2.44878329,232.26,232.2,3.8742]
[1759749431512,4.61,232.28,232.19,7.45]
[1759749432314,4.61,232.28,232.24,3.8736]
[1759749432515,105.5,232.34,232.24,3.8736]
[1759749432516,5.68613975,232.32,232.24,7.45]
[1759749432715,4.61,232.32,232.24,7.45]
[1759749432916,4.61,232.32,232.28,3.8729]
[1759749433111,4.61,232.32,232.28,11.3229]
[1759749433410,1.07613975,232.33,232.29,7.45]
[1759749433610,5.68613975,232.33,232.29,7.45]
[1759749434208,4.61,232.33,232.29,7.45]
[1759749434515,5.68596086,232.33,232.29,7.45]
[1759749435210,4.61,232.33,232.29,7.45]
[1759749435908,110.11,232.34,232.25,11.3235]
[1759749437617,113.9822,232.34,232.25,11.3235]
[1759749440213,2.44878329,232.31,232.2,7.97]
[1759749440512,2.44878329,232.31,232.12,7.97]
[1759749440513,4.61,232.24,232.12,7.97]
[1759749441020,8.4838,232.24,232.16,7.97]
[1759749441319,4.61,232.24,232.16,7.97]
[1759749441915,4.61,232.24,232.17,3.8747]
[1759749443015,105.52,232.27,232.18,3.8745]
[1759749443314,112.55878329,232.28,232.16,7.97]
[1759749443821,110.11,232.28,232.21,11.8441]
[1759749444320,110.11,232.28,232.22,3.8739]
[1759749448118,110.11,232.28,232.21,7.97]
[1759749448119,4.61,232.28,232.24,3.8736]
[1759749448317,4.61,232.32,232.25,7.97]
[1759749449118,4.61,232.32,232.23,3.8739]
[1759749449526,4.61,232.32,232.24,3.8736]
[1759749451420,4.61,232.32,232.21,7.97]
[1759749451421,4.61,232.3,232.21,7.97]
[1759749452625,4.61,232.3,232.22,3.8739]
[1759749453726,4.61,232.3,232.23,3.8738]
[1759749455218,4.61,232.3,232.16,159.96608329]
[1759749455424,4.61,232.33,232.23,7.58]
[1759749456825,4.61,232.33,232.27,3.8731]
[1759749457124,8.4823,232.33,232.24,3.8736]
[1759749457326,8.4823,232.33,232.23,7.58]
[1759749458722,4.61,232.33,232.23,7.58]
[1759749459032,4.61,232.3,232.17,7.58]
[1759749460319,4.61,232.3,232.23,3.8738]
[1759749460828,4.61,232.3,232.2,7.58]
[1759749461628,4.61,232.3,232.26,11.4534]
[1759749462130,4.61,232.3,232.27,7.58]
[1759749462521,1.07593023,232.34,232.26,3.8734]
[1759749462722,4.61,232.33,232.26,3.8734]
[1759749463932,4.61,232.33,232.27,3.8731]
[1759749464329,4.61,232.33,232.26,7.58]
[1759749466635,4.61,232.33,232.27,3.8731]
[1759749472137,5.68589473,232.33,232.27,3.8731]
[1759749475237,4.61,232.33,232.27,3.8731]
[1759749475537,5.68589473,232.33,232.27,3.8731]
[1759749475738,4.61,232.33,232.26,7.58]
[1759749475936,4.61,232.32,232.23,7.88]
[1759749476330,8.4825,232.32,232.25,3.8734]
[1759749477143,3.8721,232.34,232.26,11.7532]
[1759749477439,1.07592347,232.33,232.27,7.88]
[1759749477844,6.51351192,232.34,232.27,11.7531]
[1759749478144,1.07592347,232.34,232.27,7.88]
[1759749478641,4.10583199,232.34,232.27,7.88]
[1759749479545,4.10583199,232.34,232.28,3.8729]
[1759749479946,5.67132044,232.34,232.28,3.8729]
[1759749480848,2.64141192,232.34,232.28,3.8729]
[1759749481050,2.64141192,232.34,232.27,7.88]
[1759749481344,4.61,232.33,232.27,7.88]
[1759749481844,1.07592347,232.34,232.27,7.88]
[1759749482046,4.61,232.34,232.27,7.88]
[1759749482244,5.68592347,232.34,232.27,7.88]
[1759749482549,4.61,232.34,232.27,7.88]
[1759749482744,5.68592347,232.34,232.27,7.88]
[1759749482955,1.56548845,232.33,232.27,7.88]
[1759749483251,1.56548845,232.33,232.27,11.7531]
[1759749486454,5.68592347,232.34,232.27,7.88]
[1759749486657,4.61,232.34,232.27,7.88]
[1759749487153,5.68592347,232.34,232.27,7.88]
[1759749487651,5.68592347,232.34,232.29,3.8728]
[1759749488051,5.68592347,232.34,232.3,7.88]
[1759749488252,5.68592347,232.34,232.29,3.8728]
[1759749488458,5.68592347,232.34,232.3,7.88]
[1759749488658,5.68592347,232.34,232.29,3.8728]
[1759749488855,5.68592347,232.34,232.3,7.88]
[1759749489255,5.68592347,232.34,232.29,3.8728]
[1759749489757,1.07592347,232.34,232.3,3.8726]
[1759749489959,4.10507099,232.36,232.3,7.88]
[1759749490159,4.61,232.42,232.3,7.88]
[1759749490351,4.59520006,232.41,232.33,11.7521]
[1759749490658,5.67092656,232.41,232.33,11.7521]
[1759749491160,4.59520006,232.41,232.33,11.7521]
[1759749491956,8.46620006,232.41,232.33,11.7521]
[1759749492158,3.02971161,232.4,232.33,11.7521]
[1759749492659,3.02971161,232.4,232.33,7.88]
[1759749492857,3.02971161,232.41,232.33,7.88]
[1759749493258,3.02971161,232.41,232.35,3.8717]
[1759749493763,3.02971161,232.41,232.35,11.7517]
[1759749494866,4.61,232.4,232.35,7.88]
[1759749495064,4.61,232.39,232.35,7.88]
[1759749495264,1.56548845,232.4,232.35,7.88]
[1759749495766,4.61,232.39,232.35,7.88]
[1759749496167,1.56548845,232.4,232.34,3.872]
[1759749496463,1.56548845,232.4,232.34,7.88]
[1759749498858,5.43658845,232.4,232.34,7.88]
[1759749499054,4.61,232.39,232.29,7.54]
[1759749499261,6.17548845,232.34,232.25,7.54]
[1759749500559,3.8722,232.33,232.25,7.54]
[1759749501760,6.17548845,232.34,232.25,7.54]
[1759749502157,6.17548845,232.34,232.24,4.0]
[1759749502158,6.17548845,232.34,232.27,7.54]
[1759749503368,4.61,232.34,232.27,7.54]
[1759749503566,6.17548845,232.34,232.27,7.54]
[1759749504167,6.17548845,232.34,232.27,11.4131]
[1759749504661,1.56548845,232.36,232.29,7.54]
[1759749505264,4.61,232.38,232.3,11.4126]
[1759749505563,3.01509597,232.37,232.3,11.4126]
[1759749507870,3.01509597,232.37,232.31,3.8724]
[1759749508066,6.17548845,232.38,232.3,7.54]
[1759749509371,6.17548845,232.41,232.33,7.54]
[1759749509574,2.99760534,232.4,232.33,7.54]
[1759749510671,3.8713,232.39,232.33,7.54]
[1759749515276,3.8706,232.43,232.33,9.10548845]
[1759749515574,4.6,232.45,232.37,7.2]
[1759749515771,4.6,232.45,232.39,5.43658845]
[1759749515967,4.6,232.45,232.39,1.56548845]
[1759749516175,4.6,232.45,232.4,7.2]
[1759749516475,4.6,232.45,232.39,5.43668845]
[1759749517267,321.7898,232.48,232.4,7.2]
[1759749517466,2.99765953,232.47,232.4,7.2]
[1759749518978,2.99765953,232.47,232.41,3.8709]
[1759749519179,321.7898,232.48,232.42,7.2]
[1759749527778,8.47,232.47,232.34,60.2308]
[1759749527977,4.6,232.46,232.38,12.79678845]
[1759749528181,109.76,232.46,232.38,12.79678845]
[1759749529482,109.76,232.46,232.38,8.92548845]
[1759749530583,109.76,232.46,232.4,3.8709]
[1759749532185,109.76,232.46,232.41,3.8707]
[1759749532480,109.76,232.46,232.42,7.36]
[1759749532980,4.6,232.45,232.42,7.36]
[1759749533877,105.16,232.46,232.43,7.36]
[1759749534083,105.16,232.46,232.41,1.56548845]
[1759749534282,4.6,232.45,232.42,7.36]
[1759749534580,105.16,232.46,232.42,3.8706]
[1759749534781,105.16,232.46,232.43,7.36]
[1759749534982,109.76,232.46,232.43,7.36]
[1759749535286,4.6,232.45,232.4,3.871]
[1759749535485,105.16,232.46,232.4,3.871]
[1759749536984,4.6,232.45,232.4,3.871]
[1759749537184,105.16,232.46,232.4,11.231]
[1759749537383,109.76,232.46,232.4,11.231]
[1759749540984,109.76,232.46,232.35,2.4428195]
[1759749540985,109.76,232.46,232.42,7.36]
[1759749541193,109.76,232.46,232.41,3.8708]
[1759749541484,109.76,232.46,232.42,3.8706]
[1759749541691,109.76,232.46,232.43,7.36]
[1759749542292,105.16,232.46,232.44,7.36]
[1759749542596,109.74,232.5,232.42,7.36]
[1759749543294,109.74,232.5,232.43,3.8705]
[1759749545192,109.74,232.5,232.44,3.8702]
[1759749547795,4.6,232.49,232.42,11.2307]
[1759749549593,4.6,232.49,232.42,3.8707]
[1759749550599,8.4696,232.49,232.42,3.8707]
[1759749550895,105.14,232.5,232.39,7.36]
[1759749551297,4.6,232.49,232.39,7.36]
[1759749553094,8.4697,232.49,232.41,3.8708]
[1759749553700,4.6,232.47,232.41,11.2308]
[1759749553898,4.6,232.47,232.38,13.8028195]
[1759749554089,4.6,232.47,232.39,7.36]
[1759749555589,4.6,232.47,232.4,3.8709]
[1759749555792,8.47,232.47,232.4,3.8709]
[1759749557803,4.6,232.43,232.39,7.36]
[1759749558201,60.1899,232.51,232.39,7.36]
[1759749558397,112.69786538,232.5,232.39,7.9]
[1759749558703,4.6,232.48,232.39,7.9]
[1759749558902,2.99786538,232.47,232.39,7.9]
[1759749559703,2.99786538,232.47,232.4,3.8709]
[1759749562407,2.99786538,232.47,232.39,7.9]
[1759749564607,2.99786538,232.47,232.41,3.8708]
[1759749565110,2.99786538,232.47,232.42,7.9]
[1759749565409,2.99786538,232.48,232.42,7.9]
[1759749566716,2.99786538,232.48,232.42,11.7706]
[1759749567007,2.99786538,232.48,232.42,3.8706]
[1759749567210,2.99786538,232.48,232.44,7.9]
[1759749567413,2.99786538,232.48,232.43,3.8704]
[1759749567608,2.99786538,232.48,232.44,7.9]
[1759749568912,4.6,232.48,232.44,7.9]
[1759749569214,4.6,232.48,232.43,3.8704]
[1759749569418,4.6,232.48,232.44,7.9]
[1759749570116,4.6,232.48,232.43,3.8704]
[1759749570416,4.6,232.48,232.44,7.9]
[1759749571314,4.6,232.5,232.44,7.9]
[1759749571618,4.6,232.48,232.44,7.9]
[1759749572117,4.6,232.49,232.43,4.0]
[1759749572318,4.6,232.47,232.43,4.0]
[1759749572509,2.4428195,232.52,232.43,4.0]
[1759749572510,4.6,232.5,232.43,4.0]
[1759749572710,6.85176927,232.49,232.43,4.0]
[1759749572910,4.6,232.47,232.43,4.0]
[1759749573110,4.6,232.48,232.43,4.0]
[1759749573309,4.6,232.46,232.43,4.0]
[1759749574822,3.8698,232.48,232.43,4.0]
[1759749575018,4.6,232.47,232.43,4.0]
[1759749575217,3.8698,232.48,232.43,4.0]
[1759749575415,4.6,232.47,232.43,4.0]
[1759749575725,3.8698,232.48,232.43,4.0]
[1759749576025,4.6,232.47,232.43,4.0]
[1759749576318,3.8698,232.48,232.43,4.0]
[1759749576523,4.6,232.47,232.43,4.0]
[1759749577326,3.8698,232.48,232.43,4.0]
[1759749577522,4.6,232.47,232.43,4.0]
[1759749577828,3.8698,232.48,232.43,4.0]
[1759749578030,4.6,232.47,232.43,4.0]
[1759749578220,3.8698,232.48,232.43,4.0]
[1759749578419,4.6,232.46,232.43,4.0]
[1759749578926,3.87,232.47,232.43,4.0]
[1759749579126,4.6,232.46,232.43,4.0]
[1759749579629,3.87,232.47,232.43,4.0]
[1759749579921,4.6,232.47,232.44,7.75]
[1759749580324,1.07525224,232.51,232.43,7.8704]
[1759749580524,2.98230952,232.5,232.43,15.6204]
[1759749582228,6.85180952,232.5,232.43,15.6204]
[1759749583230,8.4696,232.49,232.43,11.75]
[1759749583430,2.98230952,232.48,232.44,7.75]
[1759749583626,4.6,232.47,232.44,7.75]
[1759749584229,4.6,232.47,232.43,11.75]
[1759749584430,4.6,232.47,232.43,4.0]
[1759749584628,4.6,232.47,232.44,7.75]
[1759749584931,3.87,232.47,232.43,4.0]
[1759749585134,4.6,232.47,232.43,4.0]
[1759749585332,4.6,232.45,232.43,4.0]
[1759749585834,8.4703,232.45,232.43,4.0]
[1759749587637,4.6,232.52,232.44,7.75]
[1759749587937,2.98162531,232.51,232.44,7.75]
[1759749588336,2.98162531,232.51,232.47,3.8699]
[1759749588633,2.98162531,232.51,232.48,7.81]
[1759749588832,4.6,232.52,232.48,7.81]
[1759749589033,2.98093092,232.51,232.48,7.81]
[1759749589334,4.6,232.52,232.47,3.8699]
[1759749589526,4.6,232.52,232.48,7.81]
[1759749590529,4.6,232.52,232.47,3.8699]
[1759749590724,4.6,232.52,232.48,7.81]
[1759749590933,4.6,232.52,232.47,3.8699]
[1759749591134,4.6,232.52,232.48,7.81]
[1759749591431,4.6,232.52,232.47,3.8699]
[1759749591935,4.6,232.52,232.48,7.81]
[1759749592132,2.4428195,232.55,232.48,7.81]
[1759749592439,4.59,232.54,232.48,7.81]
[1759749592640,4.59,232.52,232.45,11.6802]
[1759749593633,8.4592,232.52,232.45,11.6802]
[1759749597140,8.4592,232.52,232.45,15.6802]
[1759749598739,3.8687,232.54,232.47,7.81]
[1759749598938,6.84767258,232.54,232.47,7.81]
[1759749603147,6.84767258,232.54,232.47,11.81]
[1759749603444,2.97897258,232.54,232.47,11.81]
[1759749603645,4.59,232.53,232.47,11.81]
[1759749604545,3.8693,232.51,232.47,11.81]
[1759749604746,3.8693,232.51,232.47,4.0]
[1759749605044,3.8693,232.51,232.48,7.81]
[1759749605947,3.8693,232.51,232.47,4.0]
[1759749606250,3.8693,232.51,232.48,7.81]
[1759749607134,3.8693,232.51,232.47,4.0]
[1759749607335,3.8693,232.51,232.48,7.81]
[1759749608144,3.8693,232.51,232.47,4.0]
[1759749608642,3.8693,232.51,232.48,7.81]
[1759749609147,3.8693,232.51,232.49,7.81]
[1759749611640,8.4593,232.51,232.49,7.81]
[1759749612148,106.58250266,232.54,232.48,4.0]
[1759749612346,4.59,232.49,232.48,4.0]
[1759749613645,7.56675579,232.49,232.48,4.0]
[1759749614951,4.59,232.49,232.48,4.0]
[1759749616145,3.8695,232.5,232.48,4.0]
[1759749616348,3.8695,232.5,232.48,11.81]
[1759749616846,8.4595,232.5,232.48,11.81]
[1759749617155,4.59,232.49,232.48,4.0]
[1759749619152,3.8695,232.5,232.48,4.0]
[1759749619346,8.4695,232.5,232.48,4.0]
[1759749620550,4.6,232.49,232.45,7.81]
[1759749620756,7.57752337,232.48,232.39,7.28]
[1759749620954,4.6,232.48,232.39,7.28]
[1759749621454,3.8701,232.46,232.39,7.28]
[1759749622455,1.56250266,232.4,232.33,7.28]
[1759749623050,1.56250266,232.41,232.33,7.28]
[1759749623655,3.871,232.4,232.33,7.28]
[1759749625955,1.56250266,232.41,232.33,7.28]
[1759749626956,5.43350266,232.41,232.33,7.28]
[1759749628351,1.56250266,232.41,232.33,7.28]
[1759749628547,1.56250266,232.41,232.27,19.94657153]
[1759749628548,1.56250266,232.38,232.28,7.28]
[1759749628750,4.6,232.3,232.23,7.28]
[1759749628955,105.3,232.3,232.23,7.28]
[1759749629151,105.32,232.3,232.23,7.28]
[1759749629758,105.32,232.31,232.23,7.28]
[1759749631058,105.32,232.32,232.24,1.56250266]
[1759749631360,105.32,232.32,232.25,7.28]
[1759749632163,10.03460266,232.34,232.25,7.28]
[1759749632463,53.54,232.33,232.25,7.28]
[1759749632662,53.54,232.33,232.26,7.28]
[1759749634365,115.33460266,232.34,232.26,7.28]
[1759749634761,113.7721,232.34,232.26,7.28]
[1759749634962,113.7521,232.34,232.26,7.28]
[1759749639370,4.61,232.31,232.22,3.8739]
[1759749639573,4.61,232.31,232.22,1.56250266]
[1759749639869,4.61,232.31,232.23,7.69]
[1759749640572,3.8727,232.3,232.23,7.69]
[1759749644283,4.61,232.31,232.23,7.69]
[1759749644580,3.8723,232.33,232.25,1.56250266]
[1759749644780,3.8723,232.33,232.26,7.69]
[1759749645476,105.16,232.34,232.26,7.69]
[1759749652089,4.61,232.33,232.26,7.69]
[1759749652884,4.61,232.33,232.26,11.5632]
[1759749653088,4.61,232.37,232.26,7.69]
[1759749653290,4.61,232.37,232.29,7.31]
[1759749653486,4.61,232.37,232.31,3.8724]
[1759749653691,4.61,232.37,232.32,7.31]
[1759749653891,4.61,232.37,232.31,3.8724]
[1759749654089,4.61,232.37,232.31,11.1824]
[1759749654287,4.61,232.37,232.33,3.8722]
[1759749654488,6.17250266,232.39,232.33,3.8722]
[1759749654696,4.61,232.42,232.36,7.31]
[1759749654995,4.71195783,232.44,232.36,7.31]
[1759749654996,3.14945517,232.44,232.37,1.56250266]
[1759749656286,4.61,232.45,232.38,7.31]
[1759749656992,6.17250266,232.49,232.41,7.31]
[1759749657398,6.17250266,232.49,232.41,11.1807]
[1759749660996,4.61,232.49,232.41,11.1807]
[1759749664695,2.44239517,232.47,232.33,7.31]
[1759749665504,4.61,232.44,232.35,7.31]
[1759749665798,109.67,232.44,232.35,11.1817]
[1759749666400,113.5405,232.44,232.35,11.1817]
[1759749670097,3.8707,232.43,232.35,11.1817]
[1759749670305,4.61,232.43,232.32,3.8723]
[1759749670900,4.61,232.43,232.31,7.31]
[1759749671208,4.61,232.38,232.31,7.31]
[1759749671596,3.8715,232.37,232.31,7.31]
[1759749671903,4.61,232.38,232.31,7.31]
[1759749672108,4.61,232.38,232.31,11.1824]
[1759749673103,4.61,232.38,232.32,3.8722]
[1759749673300,105.06,232.42,232.31,7.31]
[1759749673599,4.61,232.43,232.31,7.31]
[1759749673803,7.7377,232.54,232.31,7.31]
[1759749673804,4.61,232.42,232.31,7.31]
[1759749675207,4.61,232.42,232.34,7.31]
[1759749676202,4.61,232.42,232.35,3.8718]
[1759749679304,4.61,232.42,232.37,3.8715]
[1759749679508,4.61,232.43,232.37,3.8715]
[1759749681209,4.61,232.46,232.37,7.54]
[1759749682601,4.61,232.46,232.4,3.871]
[1759749683605,4.61,232.46,232.4,11.411]
[1759749684002,4.61,232.46,232.41,3.8707]
[1759749684204,4.61,232.46,232.42,7.54]
[1759749685299,3.8697,232.49,232.42,7.54]
[1759749685506,4.61,232.48,232.42,7.54]
[1759749686209,4.61,232.48,232.42,11.4106]
[1759749687808,3.8699,232.47,232.42,7.54]
[1759749688009,4.61,232.46,232.35,7.54]
[1759749688303,8.4802,232.46,232.39,3.8711]
[1759749691308,105.06,232.5,232.38,7.54]
[1759749691309,4.61,232.44,232.38,7.54]
[1759749691705,2.44239517,232.47,232.38,7.54]
[1759749692599,2.44239517,232.47,232.41,3.8708]
[1759749693711,4.61,232.46,232.38,11.4112]
[1759749693912,4.61,232.46,232.38,7.54]
[1759749694713,4.61,232.46,232.4,3.8709]
[1759749696717,4.6,232.47,232.4,7.95]
[1759749697918,4.6,232.47,232.42,3.8707]
[1759749698418,4.6,232.47,232.43,7.95]
[1759749698616,4.6,232.47,232.43,11.8204]
[1759749698817,4.6,232.47,232.43,3.8704]
[1759749699118,4.6,232.47,232.44,7.95]
[1759749699615,4.6,232.47,232.44,11.8203]
[1759749700711,105.06,232.5,232.4,60.2152]
[1759749701017,105.06,232.5,232.43,7.95]
[1759749701417,4.6,232.54,232.43,7.95]
[1759749701619,2.98113833,232.53,232.43,7.95]
[1759749703721,2.98113833,232.53,232.47,11.8197]
[1759749704510,2.98113833,232.53,232.42,60.2115]
[1759749704820,4.6,232.55,232.44,7.95]
[1759749705011,105.04,232.57,232.5,3.8692]
[1759749705218,105.04,232.57,232.5,11.8192]
[1759749706219,4.6,232.56,232.5,7.95]
[1759749707619,4.6,232.56,232.47,3.8697]
[1759749708512,4.59,232.65,232.49,60.1934]
[1759749708717,127.54119812,232.72,232.49,60.1934]
[1759749708718,4.59,232.63,232.5,7.95]
[1759749709022,4.59,232.61,232.5,7.95]
[1759749709319,4.59,232.69,232.58,10.39239517]
[1759749709918,4.59,232.78,232.67,7.95]
[1759749710116,2.97850726,232.77,232.67,7.95]
[1759749710711,6.84340726,232.77,232.67,7.95]
[1759749711122,6.84340726,232.77,232.66,2.44239517]
[1759749711123,4.59,232.72,232.59,10.39239517]
[1759749711322,4.59,232.7,232.59,10.39239517]
[1759749711617,2.44239517,232.76,232.59,10.39239517]
[1759749711618,4.59,232.78,232.68,2.44239517]
[1759749712316,2.96711632,232.77,232.68,2.44239517]
[1759749712522,4.59,232.76,232.65,7.95]
[1759749712823,4.59,232.76,232.63,2.44239517]
[1759749712824,4.59,232.76,232.67,7.95]
[1759749713819,3.8652,232.75,232.67,7.95]
[1759749714024,4.59,232.76,232.62,10.39239517]
[1759749714421,106.56,232.77,232.62,10.39239517]
[1759749714621,4.59,232.72,232.62,14.25959517]
[1759749715028,4.59,232.72,232.62,11.8172]
[1759749716523,3.8659,232.71,232.62,7.95]
[1759749716720,4.59,232.69,232.62,7.95]
[1759749717119,90.38,232.68,232.62,7.95]
[1759749718832,90.38,232.68,232.58,7.95]
[1759749719022,4.59,232.67,232.58,7.95]
[1759749719525,110.4068,232.66,232.58,7.95]
[1759749719721,110.4068,232.66,232.53,4.22559383]
[1759749719722,4.59,232.65,232.54,7.95]
[1759749720330,8.457,232.65,232.54,7.95]
[1759749721223,106.64,232.64,232.55,3.8685]
[1759749723029,1.56131195,232.63,232.55,3.8685]
[1759749725026,106.58,232.62,232.55,3.8685]
[1759749727031,106.58,232.62,232.54,7.95]
[1759749727832,1.56131195,232.6,232.54,7.95]
[1759749728329,1.56131195,232.6,232.51,1.56131195]
[1759749728330,5.42901195,232.6,232.51,1.56131195]
[1759749728532,5.42901195,232.6,232.51,9.51131195]
[1759749728835,106.5,232.59,232.51,9.51131195]
[1759749729135,4.59,232.57,232.51,7.95]
[1759749730133,3.8685,232.56,232.51,7.95]
[1759749730335,4.59,232.55,232.48,5.43081195]
[1759749731834,4.59,232.55,232.48,3.8695]
[1759749732034,4.59,232.55,232.47,9.51131195]
[1759749732839,4.59,232.55,232.47,7.95]
[1759749733133,4.59,232.55,232.47,9.51131195]
[1759749733328,4.59,232.55,232.49,3.8694]
[1759749733735,38.32,232.54,232.48,7.95]
[1759749734031,38.32,232.54,232.5,3.8692]
[1759749734234,38.32,232.54,232.51,7.95]
[1759749735728,79.5,232.54,232.51,7.95]
[1759749736932,106.4,232.54,232.51,7.95]
[1759749737438,106.36,232.54,232.51,7.95]
[1759749737635,10.01931195,232.59,232.51,7.95]
[1759749737932,68.22,232.58,232.51,7.95]
[1759749738140,4.59,232.57,232.51,7.95]
[1759749738936,8.4582,232.57,232.49,3.8694]
[1759749739526,58.32,232.56,232.49,3.8694]
[1759749741439,97.32,232.55,232.49,3.8694]
[1759749741848,4.59,232.54,232.49,3.8694]
[1759749742133,97.32,232.55,232.49,3.8694]
[1759749742339,101.91,232.55,232.49,3.8694]
[1759749742835,1.56131195,232.54,232.47,7.25]
[1759749745843,4.59,232.6,232.51,7.25]
[1759749747339,4.59,232.6,232.55,3.8684]
[1759749747747,6.15131195,232.64,232.54,7.25]
[1759749748147,36.88,232.63,232.54,7.25]
[1759749748351,6.15131195,232.64,232.56,3.8683]
[1759749748550,70.94,232.62,232.56,3.8683]
[1759749748751,75.53,232.62,232.56,3.8683]
[1759749749049,106.22,232.62,232.57,3.8681]
[1759749749250,106.22,232.62,232.58,7.25]
[1759749749546,106.3,232.63,232.57,11.1181]
[1759749749847,4.59,232.66,232.57,7.25]
[1759749750052,37.15,232.7,232.6,7.25]
[1759749750253,2.975955,232.69,232.6,7.25]
[1759749751148,2.975955,232.69,232.62,3.8672]
[1759749751343,2.975955,232.69,232.6,7.25]
[1759749751551,2.975955,232.69,232.62,1.56131195]
[1759749751951,109.295955,232.69,232.63,7.25]
[1759749752152,106.32,232.69,232.6,3.8676]
[1759749752347,4.59,232.67,232.59,8.81131195]
[1759749752548,4.59,232.67,232.59,7.25]
[1759749752750,1.56131195,232.65,232.57,1.56131195]
[1759749753257,1.56131195,232.65,232.55,7.25]
[1759749753555,1.56131195,232.65,232.57,3.8682]
[1759749753750,1.56131195,232.65,232.55,7.25]